[Event "Gibraltar Masters 18th"]
[Site "Gibraltar"]
[Date "2020.01.24"]
[Round "4.41"]
[White "Kulkarni, Bhakti"]
[Black "Flom, Gabriel"]
[Result "1/2-1/2"]
[ECO "A67"]
[WhiteElo "2404"]
[BlackElo "2510"]
[PlyCount "165"]
[EventDate "2020.01.21"]
[EventType "swiss"]
[EventRounds "10"]
[EventCountry "GGB"]
[SourceTitle "BritBase"]
[Source "John Saunders"]
[SourceDate "2021.06.05"]
[SourceVersion "1"]
[SourceVersionDate "2021.06.05"]
[SourceQuality "1"]
[TimeControl "40/100:0"]
[WhiteClock "0:24:34"]
[BlackClock "0:40:05"]

1. d4 {[%emt 0:00:00]} Nf6 {[%emt 0:00:00]} 2. c4 {[%emt 0:00:00]} c5 {[%emt 0:
00:00]} 3. d5 {[%emt 0:00:00]} e6 {[%emt 0:00:00]} 4. Nc3 {[%emt 0:00:00]} exd5
{[%emt 0:00:00]} 5. cxd5 {[%emt 0:00:00]} d6 {[%emt 0:00:00]} 6. e4 {[%emt 0:
00:00]} g6 {[%emt 0:00:00]} 7. f4 {[%emt 0:00:00]} Bg7 {[%emt 0:00:00]} 8. Bb5+
{[%emt 0:00:00]} Nfd7 {[%emt 0:00:00]} 9. a4 {[%emt 0:00:00]} O-O {[%emt 0:00:
00]} 10. Nf3 {[%emt 0:00:00]} Na6 {[%emt 0:00:00]} 11. O-O {[%emt 0:00:00]} Nb4
{[%emt 0:00:00]} 12. Bxd7 {[%emt 0:00:00]} Bxd7 {[%emt 0:00:00]} 13. f5 {
[%emt 0:00:00]} gxf5 {[%emt 0:00:00]} 14. Bg5 {[%emt 0:00:00]} f6 {[%emt 0:00:
00]} 15. Bf4 {[%emt 0:00:00]} Re8 {[%emt 0:00:00]} 16. Nd2 {[%emt 0:00:00]} Nd3
{[%emt 0:00:00]} 17. Bxd6 {[%emt 0:00:00]} Qb6 {[%emt 0:00:00]} 18. Nc4 {
[%emt 0:00:00]} Nxb2 {[%emt 0:00:00]} 19. Nxb6 {[%emt 0:00:00]} Nxd1 {[%emt 0:
00:00]} 20. Raxd1 {[%emt 0:00:00]} axb6 {[%emt 0:00:00]} 21. exf5 {[%emt 0:00:
00]} Re3 {[%emt 0:00:00]} 22. Rc1 {[%emt 0:00:00]} Bxa4 {[%emt 0:00:00]} 23.
Nxa4 {[%emt 0:00:00]} Rxa4 {[%emt 0:00:00]} 24. Bc7 {[%emt 0:00:00]} Rd3 {
[%emt 0:00:00]} 25. d6 {[%emt 0:00:00]} Bf8 {[%emt 0:00:00]} 26. Bxb6 {[%emt 0:
00:00]} c4 {[%emt 0:00:00]} 27. Rf4 {[%emt 0:00:00]} Rxd6 {[%emt 0:00:00]} 28.
Rg4+ {[%emt 0:00:00]} Kf7 {[%emt 0:00:00]} 29. Bc5 {[%emt 0:00:00]} Rc6 {
[%emt 0:00:00]} 30. Bxf8 {[%emt 0:00:00]} Kxf8 {[%emt 0:00:00]} 31. Rd1 {
[%emt 0:00:00]} Rc7 {[%emt 0:00:00]} 32. Rd8+ {[%emt 0:00:00]} Ke7 {[%emt 0:00:
00]} 33. Rdd4 {[%emt 0:00:00]} Kf7 {[%emt 0:00:00]} 34. Rh4 {[%emt 0:00:00]}
Ke8 {[%emt 0:00:00]} 35. Rhe4+ {[%emt 0:00:00]} Re7 {[%emt 0:00:00]} 36. Rg4 {
[%emt 0:00:00]} Re5 {[%emt 0:00:00]} 37. Rxc4 {[%emt 0:00:00]} Rxc4 {[%emt 0:
00:00]} 38. Rxc4 {[%emt 0:00:00]} Kd7 {[%emt 0:00:00]} 39. Rh4 {[%emt 0:00:00]}
b5 {[%emt 0:00:00]} 40. Rxh7+ {[%emt 0:00:00]} Kc6 {[%emt 0:00:00]} 41. g4 {
[%emt 0:00:00]} b4 {[%emt 0:00:00]} 42. Rf7 {[%emt 0:00:00]} b3 {[%emt 0:00:00]
} 43. Rxf6+ {[%emt 0:00:00]} Kc7 {[%emt 0:00:00]} 44. Rf7+ {[%emt 0:00:00]} Kc6
{[%emt 0:00:00]} 45. Rf6+ {[%emt 0:00:00]} Kb7 {[%emt 0:00:00]} 46. Rf7+ {
[%emt 0:01:02]} Ka6 {[%emt 0:00:00]} 47. Rf6+ {[%emt 0:01:13]} Ka5 {[%emt 0:00:
00]} 48. Rd6 {[%emt 0:00:00]} b2 {[%emt 0:00:00]} 49. Rd1 {[%emt 0:00:00]} Rc5
{[%emt 0:00:00]} 50. Kf2 {[%emt 0:00:00]} Rc1 {[%emt 0:00:00]} 51. Rd8 {
[%emt 0:00:00]} b1=Q {[%emt 0:00:00]} 52. Ra8+ {[%emt 0:00:00]} Kb6 {[%emt 0:
00:00]} 53. Rb8+ {[%emt 0:00:00]} Kc7 {[%emt 0:00:00]} 54. Rxb1 {[%emt 0:00:00]
} Rxb1 {[%emt 0:00:00]} 55. f6 {[%emt 0:00:00]} Kd6 {[%emt 0:00:00]} 56. h4 {
[%emt 0:00:00]} Ke6 {[%emt 0:00:00]} 57. g5 {[%emt 0:00:00]} Kf5 {[%emt 0:00:
00]} 58. Kg3 {[%emt 0:00:00]} Rb3+ {[%emt 0:00:00]} 59. Kg2 {[%emt 0:00:00]}
Kg6 {[%emt 0:00:00]} 60. Kh2 {[%emt 0:00:00]} Rf3 {[%emt 0:00:00]} 61. Kg2 {
[%emt 0:00:00]} Rf5 {[%emt 0:00:00]} 62. Kh2 {[%emt 0:00:00]} Rf3 {[%emt 0:00:
00]} 63. Kg2 {[%emt 0:00:00]} Rc3 {[%emt 0:00:00]} 64. Kh2 {[%emt 0:00:00]} Kh5
{[%emt 0:00:00]} 65. Kg2 {[%emt 0:00:00]} Ra3 {[%emt 0:00:00]} 66. Kh2 {
[%emt 0:00:00]} Ra4 {[%emt 0:00:00]} 67. Kg3 {[%emt 0:00:00]} Kg6 {[%emt 0:00:
00]} 68. Kh3 {[%emt 0:00:00]} Kf5 {[%emt 0:00:00]} 69. Kg3 {[%emt 0:00:00]}
Ra3+ {[%emt 0:00:00]} 70. Kg2 {[%emt 0:00:00]} Ra8 {[%emt 0:00:00]} 71. Kg3 {
[%emt 0:00:00]} Rb8 {[%emt 0:00:00]} 72. Kf3 {[%emt 0:00:00]} Rc8 {[%emt 0:00:
00]} 73. Kg3 {[%emt 0:00:00]} Rc4 {[%emt 0:00:00]} 74. Kh3 {[%emt 0:00:00]} Rf4
{[%emt 0:00:00]} 75. Kg3 {[%emt 0:00:00]} Ke5 {[%emt 0:00:00]} 76. Kh3 {
[%emt 0:00:00]} Rf3+ {[%emt 0:00:00]} 77. Kg2 {[%emt 0:00:00]} Ra3 {[%emt 0:00:
00]} 78. f7 {[%emt 0:00:00]} Ra8 {[%emt 0:00:00]} 79. g6 {[%emt 0:00:00]} Kf6 {
[%emt 0:00:00]} 80. h5 {[%emt 0:00:00]} Kg7 {[%emt 0:00:00]} 81. Kg3 {[%emt 0:
00:00]} Rf8 {[%emt 0:00:00]} 82. Kg4 {[%emt 0:00:00]} Rxf7 {[%emt 0:00:00]} 83.
gxf7 {[%emt 0:00:05]} 1/2-1/2

[Event "Gibraltar Masters 18th"]
[Site "Gibraltar"]
[Date "2020.01.24"]
[Round "4.42"]
[White "Barbosa, Evandro Amorim"]
[Black "Petrov, Vladimir Sergeev"]
[Result "1-0"]
[ECO "B90"]
[WhiteElo "2501"]
[BlackElo "2353"]
[PlyCount "69"]
[EventDate "2020.01.21"]
[EventType "swiss"]
[EventRounds "10"]
[EventCountry "GGB"]
[SourceTitle "BritBase"]
[Source "John Saunders"]
[SourceDate "2021.06.05"]
[SourceVersion "1"]
[SourceVersionDate "2021.06.05"]
[SourceQuality "1"]
[TimeControl "40/100:0"]
[WhiteClock "0:15:01"]
[BlackClock "0:00:45"]

1. e4 {[%emt 0:00:00]} c5 {[%emt 0:00:00]} 2. Nf3 {[%emt 0:00:00]} d6 {[%emt 0:
00:00]} 3. d4 {[%emt 0:00:00]} cxd4 {[%emt 0:00:00]} 4. Nxd4 {[%emt 0:00:00]}
Nf6 {[%emt 0:00:00]} 5. Nc3 {[%emt 0:00:00]} a6 {[%emt 0:00:00]} 6. Bd3 {
[%emt 0:00:00]} e5 {[%emt 0:00:00]} 7. Nde2 {[%emt 0:00:00]} b5 {[%emt 0:00:00]
} 8. O-O {[%emt 0:00:00]} b4 {[%emt 0:00:00]} 9. Nd5 {[%emt 0:00:00]} Nxd5 {
[%emt 0:00:00]} 10. exd5 {[%emt 0:00:00]} f5 {[%emt 0:00:00]} 11. f4 {[%emt 0:
00:00]} e4 {[%emt 0:00:00]} 12. Bc4 {[%emt 0:00:00]} Nd7 {[%emt 0:00:00]} 13.
Nd4 {[%emt 0:00:00]} Nf6 {[%emt 0:00:00]} 14. h3 {[%emt 0:00:00]} g6 {[%emt 0:
00:00]} 15. Be3 {[%emt 0:00:00]} Bg7 {[%emt 0:00:00]} 16. Qd2 {[%emt 0:00:00]}
a5 {[%emt 0:00:00]} 17. Bb5+ {[%emt 0:00:00]} Kf7 {[%emt 0:00:00]} 18. Nc6 {
[%emt 0:00:00]} Qc7 {[%emt 0:00:00]} 19. a3 {[%emt 0:00:00]} Bd7 {[%emt 0:00:
00]} 20. axb4 {[%emt 0:00:00]} axb4 {[%emt 0:00:00]} 21. Qxb4 {[%emt 0:00:00]}
Nxd5 {[%emt 0:00:00]} 22. Qc4 {[%emt 0:00:00]} Be6 {[%emt 0:00:00]} 23. Rad1 {
[%emt 0:00:00]} Rhc8 {[%emt 0:00:00]} 24. Rxd5 {[%emt 0:00:00]} Bxb2 {[%emt 0:
00:00]} 25. Rfd1 {[%emt 0:00:00]} Ra1 {[%emt 0:00:00]} 26. Rxa1 {[%emt 0:00:00]
} Bxa1 {[%emt 0:00:00]} 27. Bd4 {[%emt 0:00:00]} Bxd4+ {[%emt 0:00:00]} 28.
Qxd4 {[%emt 0:00:00]} Bxd5 {[%emt 0:00:00]} 29. Qxd5+ {[%emt 0:00:00]} Kg7 {
[%emt 0:00:00]} 30. Qd4+ {[%emt 0:00:00]} Kh6 {[%emt 0:00:00]} 31. Qf6 {
[%emt 0:00:00]} d5 {[%emt 0:00:00]} 32. Nd4 {[%emt 0:00:00]} Qxf4 {[%emt 0:00:
00]} 33. Ne6 {[%emt 0:00:00]} Qc1+ {[%emt 0:00:46]} 34. Kh2 {[%emt 0:00:00]}
Kh5 {[%emt 0:00:09]} 35. Be2+ {[%emt 0:00:00]} 1-0

[Event "Gibraltar Masters 18th"]
[Site "Gibraltar"]
[Date "2020.01.24"]
[Round "4.43"]
[White "Soumya, Swaminathan"]
[Black "Gagare, Shardul"]
[Result "0-1"]
[ECO "C11"]
[WhiteElo "2384"]
[BlackElo "2481"]
[PlyCount "74"]
[EventDate "2020.01.21"]
[EventType "swiss"]
[EventRounds "10"]
[EventCountry "GGB"]
[SourceTitle "BritBase"]
[Source "John Saunders"]
[SourceDate "2021.06.05"]
[SourceVersion "1"]
[SourceVersionDate "2021.06.05"]
[SourceQuality "1"]
[TimeControl "40/100:0"]
[WhiteClock "0:00:33"]
[BlackClock "0:09:38"]

1. e4 {[%emt 0:00:00]} e6 {[%emt 0:00:00]} 2. d4 {[%emt 0:00:00]} d5 {[%emt 0:
00:00]} 3. Nc3 {[%emt 0:00:00]} Nf6 {[%emt 0:00:00]} 4. e5 {[%emt 0:00:00]}
Nfd7 {[%emt 0:00:00]} 5. f4 {[%emt 0:00:00]} c5 {[%emt 0:00:00]} 6. Nf3 {
[%emt 0:00:00]} Nc6 {[%emt 0:00:00]} 7. Be3 {[%emt 0:00:00]} a6 {[%emt 0:00:00]
} 8. Qd2 {[%emt 0:00:00]} b5 {[%emt 0:00:00]} 9. dxc5 {[%emt 0:00:00]} Bxc5 {
[%emt 0:00:00]} 10. Bd3 {[%emt 0:00:00]} Qb6 {[%emt 0:00:00]} 11. Bf2 {[%emt 0:
00:00]} h6 {[%emt 0:00:00]} 12. O-O {[%emt 0:00:00]} O-O {[%emt 0:00:00]} 13.
Rad1 {[%emt 0:00:00]} Ra7 {[%emt 0:00:00]} 14. Ne2 {[%emt 0:00:00]} Bxf2+ {
[%emt 0:00:00]} 15. Rxf2 {[%emt 0:00:00]} f6 {[%emt 0:00:00]} 16. exf6 {
[%emt 0:00:00]} Nxf6 {[%emt 0:00:00]} 17. h3 {[%emt 0:00:00]} Ne4 {[%emt 0:00:
00]} 18. Bxe4 {[%emt 0:00:00]} dxe4 {[%emt 0:00:00]} 19. Nfd4 {[%emt 0:00:00]}
Rd7 {[%emt 0:00:00]} 20. Qe3 {[%emt 0:00:00]} Bb7 {[%emt 0:00:00]} 21. c3 {
[%emt 0:00:00]} Ne7 {[%emt 0:00:00]} 22. Rdf1 {[%emt 0:00:00]} Rf6 {[%emt 0:00:
00]} 23. g4 {[%emt 0:00:00]} Nd5 {[%emt 0:00:00]} 24. Qg3 {[%emt 0:00:00]} e3 {
[%emt 0:00:00]} 25. Rf3 {[%emt 0:00:00]} b4 {[%emt 0:00:00]} 26. g5 {[%emt 0:
00:00]} Rg6 {[%emt 0:00:00]} 27. h4 {[%emt 0:00:00]} bxc3 {[%emt 0:00:00]} 28.
h5 {[%emt 0:00:00]} e5 {[%emt 0:00:00]} 29. hxg6 {[%emt 0:00:00]} exd4 {
[%emt 0:00:00]} 30. Qg4 {[%emt 0:00:18]} Rd8 {[%emt 0:00:00]} 31. f5 {[%emt 0:
00:44]} d3 {[%emt 0:00:00]} 32. f6 {[%emt 0:00:00]} dxe2 {[%emt 0:00:00]} 33.
f7+ {[%emt 0:00:01]} Kf8 {[%emt 0:00:00]} 34. gxh6 {[%emt 0:00:00]} exf1=Q+ {
[%emt 0:00:00]} 35. Kxf1 {[%emt 0:00:00]} Nf6 {[%emt 0:00:00]} 36. h7 {[%emt 0:
00:00]} Rd1+ {[%emt 0:00:00]} 37. Kg2 {[%emt 0:00:04]} Qxb2+ {[%emt 0:00:00]}
0-1

[Event "Gibraltar Masters 18th"]
[Site "Gibraltar"]
[Date "2020.01.24"]
[Round "4.44"]
[White "Pogonina, Natalija"]
[Black "Pourkashiyan, Atousa"]
[Result "1/2-1/2"]
[ECO "E06"]
[WhiteElo "2479"]
[BlackElo "2305"]
[PlyCount "64"]
[EventDate "2020.01.21"]
[EventType "swiss"]
[EventRounds "10"]
[EventCountry "GGB"]
[SourceTitle "BritBase"]
[Source "John Saunders"]
[SourceDate "2021.06.05"]
[SourceVersion "1"]
[SourceVersionDate "2021.06.05"]
[SourceQuality "1"]
[TimeControl "40/100:0"]
[WhiteClock "0:07:16"]
[BlackClock "0:03:56"]

1. d4 {[%emt 0:00:00]} Nf6 {[%emt 0:00:00]} 2. c4 {[%emt 0:00:00]} e6 {[%emt 0:
00:00]} 3. g3 {[%emt 0:00:00]} d5 {[%emt 0:00:00]} 4. Bg2 {[%emt 0:00:00]} Bb4+
{[%emt 0:00:00]} 5. Bd2 {[%emt 0:00:00]} Be7 {[%emt 0:00:00]} 6. Nf3 {[%emt 0:
00:00]} O-O {[%emt 0:00:00]} 7. O-O {[%emt 0:00:00]} c6 {[%emt 0:00:00]} 8. Qc2
{[%emt 0:00:00]} b6 {[%emt 0:00:00]} 9. Bf4 {[%emt 0:00:00]} Ba6 {[%emt 0:00:
00]} 10. cxd5 {[%emt 0:00:00]} cxd5 {[%emt 0:00:00]} 11. Rc1 {[%emt 0:00:00]}
Nbd7 {[%emt 0:00:00]} 12. Nc3 {[%emt 0:00:00]} b5 {[%emt 0:00:00]} 13. a4 {
[%emt 0:00:00]} Qb6 {[%emt 0:00:00]} 14. axb5 {[%emt 0:00:00]} Bxb5 {[%emt 0:
00:00]} 15. Nxb5 {[%emt 0:00:00]} Qxb5 {[%emt 0:00:00]} 16. Bf1 {[%emt 0:00:00]
} Qb4 {[%emt 0:00:00]} 17. Qc7 {[%emt 0:00:00]} Rfd8 {[%emt 0:00:00]} 18. e3 {
[%emt 0:00:00]} a5 {[%emt 0:00:00]} 19. Bd3 {[%emt 0:00:00]} Ne4 {[%emt 0:00:
00]} 20. Qc2 {[%emt 0:00:00]} h6 {[%emt 0:00:00]} 21. Ne5 {[%emt 0:00:00]} Nxe5
{[%emt 0:00:00]} 22. Bxe5 {[%emt 0:00:00]} Qb7 {[%emt 0:00:00]} 23. Qe2 {
[%emt 0:00:00]} Bd6 {[%emt 0:00:00]} 24. Bxd6 {[%emt 0:00:00]} Rxd6 {[%emt 0:
00:00]} 25. Bxe4 {[%emt 0:00:00]} dxe4 {[%emt 0:00:00]} 26. Rc5 {[%emt 0:01:26]
} Rb6 {[%emt 0:00:00]} 27. Ra2 {[%emt 0:00:00]} a4 {[%emt 0:00:00]} 28. Qc2 {
[%emt 0:00:00]} Rb4 {[%emt 0:00:00]} 29. Kg2 {[%emt 0:00:00]} g6 {[%emt 0:00:
00]} 30. Rc4 {[%emt 0:00:00]} Rxc4 {[%emt 0:00:00]} 31. Qxc4 {[%emt 0:00:00]}
Kg7 {[%emt 0:00:00]} 32. h3 {[%emt 0:00:00]} h5 {[%emt 0:00:00]} 1/2-1/2

[Event "Gibraltar Masters 18th"]
[Site "Gibraltar"]
[Date "2020.01.24"]
[Round "4.45"]
[White "Trent, Lawrence"]
[Black "Abergel, Thal"]
[Result "1-0"]
[ECO "B13"]
[WhiteElo "2383"]
[BlackElo "2478"]
[PlyCount "51"]
[EventDate "2020.01.21"]
[EventType "swiss"]
[EventRounds "10"]
[EventCountry "GGB"]
[SourceTitle "BritBase"]
[Source "John Saunders"]
[SourceDate "2021.06.05"]
[SourceVersion "1"]
[SourceVersionDate "2021.06.05"]
[SourceQuality "1"]
[TimeControl "40/100:0"]
[WhiteClock "0:17:40"]
[BlackClock "0:18:27"]

1. d4 {[%emt 0:00:00]} Nf6 {[%emt 0:00:00]} 2. Bf4 {[%emt 0:00:00]} d5 {
[%emt 0:00:00]} 3. Nc3 {[%emt 0:00:00]} c5 {[%emt 0:00:00]} 4. e3 {[%emt 0:00:
00]} cxd4 {[%emt 0:00:00]} 5. exd4 {[%emt 0:00:00]} a6 {[%emt 0:00:00]} 6. Nf3
{[%emt 0:00:00]} Nc6 {[%emt 0:00:00]} 7. Ne5 {[%emt 0:00:00]} Bd7 {[%emt 0:00:
00]} 8. Qd3 {[%emt 0:00:00]} e6 {[%emt 0:00:00]} 9. Be2 {[%emt 0:00:00]} Qb6 {
[%emt 0:00:00]} 10. Nxc6 {[%emt 0:00:00]} Qxc6 {[%emt 0:00:00]} 11. O-O {
[%emt 0:00:00]} Rc8 {[%emt 0:00:00]} 12. Qg3 {[%emt 0:00:00]} Qb6 {[%emt 0:00:
00]} 13. Rab1 {[%emt 0:00:00]} Qxd4 {[%emt 0:00:00]} 14. Rfd1 {[%emt 0:00:00]}
Qb6 {[%emt 0:00:00]} 15. Be5 {[%emt 0:00:00]} Bc6 {[%emt 0:00:00]} 16. b4 {
[%emt 0:00:00]} Nd7 {[%emt 0:00:00]} 17. b5 {[%emt 0:00:00]} Nxe5 {[%emt 0:00:
00]} 18. Qxe5 {[%emt 0:00:00]} axb5 {[%emt 0:00:00]} 19. Nxd5 {[%emt 0:00:00]}
Bxd5 {[%emt 0:00:00]} 20. Rxd5 {[%emt 0:00:00]} f6 {[%emt 0:00:00]} 21. Bh5+ {
[%emt 0:00:00]} g6 {[%emt 0:00:00]} 22. Qxf6 {[%emt 0:00:00]} gxh5 {[%emt 0:00:
00]} 23. Rdxb5 {[%emt 0:00:00]} Qc6 {[%emt 0:00:00]} 24. Rxb7 {[%emt 0:00:00]}
Qd6 {[%emt 0:00:00]} 25. R7b6 {[%emt 0:00:00]} Qd5 {[%emt 0:00:00]} 26. Rxe6+ {
[%emt 0:00:00]} 1-0

[Event "Gibraltar Masters 18th"]
[Site "Gibraltar"]
[Date "2020.01.24"]
[Round "4.46"]
[White "Girya, Olga"]
[Black "Weisbuch, Udi"]
[Result "1/2-1/2"]
[ECO "E94"]
[WhiteElo "2477"]
[BlackElo "2222"]
[PlyCount "102"]
[EventDate "2020.01.21"]
[EventType "swiss"]
[EventRounds "10"]
[EventCountry "GGB"]
[SourceTitle "BritBase"]
[Source "John Saunders"]
[SourceDate "2021.06.05"]
[SourceVersion "1"]
[SourceVersionDate "2021.06.05"]
[SourceQuality "1"]
[TimeControl "40/100:0"]
[WhiteClock "0:18:06"]
[BlackClock "0:18:33"]

1. d4 {[%emt 0:00:00]} Nf6 {[%emt 0:00:00]} 2. c4 {[%emt 0:00:00]} g6 {[%emt 0:
00:00]} 3. Nc3 {[%emt 0:00:00]} Bg7 {[%emt 0:00:00]} 4. e4 {[%emt 0:00:00]} d6
{[%emt 0:00:00]} 5. Be2 {[%emt 0:00:00]} O-O {[%emt 0:00:00]} 6. Be3 {[%emt 0:
00:00]} c6 {[%emt 0:00:00]} 7. Nf3 {[%emt 0:00:00]} e5 {[%emt 0:00:00]} 8. dxe5
{[%emt 0:00:00]} dxe5 {[%emt 0:00:00]} 9. Qxd8 {[%emt 0:00:00]} Rxd8 {[%emt 0:
00:00]} 10. O-O {[%emt 0:00:00]} Bg4 {[%emt 0:00:00]} 11. Rfd1 {[%emt 0:00:00]}
Re8 {[%emt 0:00:00]} 12. h3 {[%emt 0:00:00]} Bxf3 {[%emt 0:00:00]} 13. Bxf3 {
[%emt 0:00:00]} Na6 {[%emt 0:00:00]} 14. g4 {[%emt 0:00:00]} h6 {[%emt 0:00:00]
} 15. h4 {[%emt 0:00:00]} Bf8 {[%emt 0:00:00]} 16. Na4 {[%emt 0:00:00]} b6 {
[%emt 0:00:00]} 17. g5 {[%emt 0:00:00]} hxg5 {[%emt 0:00:00]} 18. hxg5 {
[%emt 0:00:00]} Nh7 {[%emt 0:00:00]} 19. Bg4 {[%emt 0:00:00]} Nc5 {[%emt 0:00:
00]} 20. Nxc5 {[%emt 0:00:00]} Bxc5 {[%emt 0:00:00]} 21. Bd7 {[%emt 0:00:00]}
Red8 {[%emt 0:00:00]} 22. Bxc6 {[%emt 0:00:00]} Rac8 {[%emt 0:00:00]} 23. Rxd8+
{[%emt 0:00:00]} Rxd8 {[%emt 0:00:00]} 24. Bd5 {[%emt 0:00:00]} Bxe3 {[%emt 0:
00:00]} 25. fxe3 {[%emt 0:00:00]} Nxg5 {[%emt 0:00:00]} 26. b4 {[%emt 0:00:00]}
Kf8 {[%emt 0:00:00]} 27. a4 {[%emt 0:00:00]} Rb8 {[%emt 0:00:00]} 28. a5 {
[%emt 0:00:00]} bxa5 {[%emt 0:00:00]} 29. b5 {[%emt 0:00:00]} Rc8 {[%emt 0:00:
00]} 30. Rxa5 {[%emt 0:00:00]} Rc7 {[%emt 0:00:00]} 31. Ra6 {[%emt 0:00:00]}
Ne6 {[%emt 0:00:00]} 32. Bxe6 {[%emt 0:00:00]} fxe6 {[%emt 0:00:00]} 33. Rxe6 {
[%emt 0:00:00]} Rxc4 {[%emt 0:00:00]} 34. Rxe5 {[%emt 0:00:00]} Rc2 {[%emt 0:
00:00]} 35. Re6 {[%emt 0:00:00]} Re2 {[%emt 0:00:00]} 36. Ra6 {[%emt 0:00:10]}
Rb2 {[%emt 0:00:57]} 37. Ra5 {[%emt 0:00:27]} Ke8 {[%emt 0:00:03]} 38. Kf1 {
[%emt 0:00:00]} Kd8 {[%emt 0:00:00]} 39. e5 {[%emt 0:00:11]} g5 {[%emt 0:00:00]
} 40. Ke1 {[%emt 0:00:03]} Kc8 {[%emt 0:00:02]} 41. e6 {[%emt 0:00:00]} Kd8 {
[%emt 0:00:00]} 42. Kd1 {[%emt 0:00:00]} Ke7 {[%emt 0:00:00]} 43. Rxa7+ {
[%emt 0:00:00]} Kxe6 {[%emt 0:00:00]} 44. Rb7 {[%emt 0:00:00]} Kd6 {[%emt 0:00:
00]} 45. Ke1 {[%emt 0:00:00]} g4 {[%emt 0:00:00]} 46. Kf1 {[%emt 0:00:00]} g3 {
[%emt 0:00:00]} 47. b6 {[%emt 0:00:00]} Rf2+ {[%emt 0:00:00]} 48. Ke1 {[%emt 0:
00:00]} Rb2 {[%emt 0:00:00]} 49. Rg7 {[%emt 0:00:00]} g2 {[%emt 0:00:00]} 50.
b7 {[%emt 0:00:00]} Rxb7 {[%emt 0:00:00]} 51. Rxg2 {[%emt 0:00:00]} Rb1+ {
[%emt 0:00:00]} 1/2-1/2

[Event "Gibraltar Masters 18th"]
[Site "Gibraltar"]
[Date "2020.01.24"]
[Round "4.47"]
[White "Abdumalik, Zhansaya"]
[Black "Represa Perez, Mireya"]
[Result "1-0"]
[ECO "B90"]
[WhiteElo "2471"]
[BlackElo "2081"]
[PlyCount "85"]
[EventDate "2020.01.21"]
[EventType "swiss"]
[EventRounds "10"]
[EventCountry "GGB"]
[SourceTitle "BritBase"]
[Source "John Saunders"]
[SourceDate "2021.06.05"]
[SourceVersion "1"]
[SourceVersionDate "2021.06.05"]
[SourceQuality "1"]
[TimeControl "40/100:0"]
[WhiteClock "1:02:01"]
[BlackClock "0:04:25"]

1. e4 {[%emt 0:00:00]} c5 {[%emt 0:00:00]} 2. Nf3 {[%emt 0:00:00]} d6 {[%emt 0:
00:00]} 3. d4 {[%emt 0:00:00]} cxd4 {[%emt 0:00:00]} 4. Nxd4 {[%emt 0:00:00]}
Nf6 {[%emt 0:00:00]} 5. Nc3 {[%emt 0:00:00]} a6 {[%emt 0:00:00]} 6. h3 {
[%emt 0:00:00]} e5 {[%emt 0:00:00]} 7. Nb3 {[%emt 0:00:00]} b5 {[%emt 0:00:00]}
8. g4 {[%emt 0:00:00]} b4 {[%emt 0:00:00]} 9. Nd5 {[%emt 0:00:00]} Nxd5 {
[%emt 0:00:00]} 10. Qxd5 {[%emt 0:00:00]} Ra7 {[%emt 0:00:00]} 11. Be3 {
[%emt 0:00:00]} Be6 {[%emt 0:00:00]} 12. Qa5 {[%emt 0:00:00]} Qxa5 {[%emt 0:00:
00]} 13. Nxa5 {[%emt 0:00:00]} Rd7 {[%emt 0:00:00]} 14. Nc4 {[%emt 0:00:00]}
Rc7 {[%emt 0:00:00]} 15. b3 {[%emt 0:00:00]} h5 {[%emt 0:00:00]} 16. g5 {
[%emt 0:00:00]} d5 {[%emt 0:00:00]} 17. exd5 {[%emt 0:00:00]} Bxd5 {[%emt 0:00:
00]} 18. Rh2 {[%emt 0:00:00]} f6 {[%emt 0:00:00]} 19. f4 {[%emt 0:00:00]} Bc5 {
[%emt 0:00:00]} 20. Bxc5 {[%emt 0:00:00]} Rxc5 {[%emt 0:00:00]} 21. gxf6 {
[%emt 0:00:00]} gxf6 {[%emt 0:00:00]} 22. O-O-O {[%emt 0:00:00]} a5 {[%emt 0:
00:00]} 23. Rhd2 {[%emt 0:00:00]} Bxc4 {[%emt 0:00:00]} 24. Rd8+ {[%emt 0:00:
00]} Ke7 {[%emt 0:00:00]} 25. Rxh8 {[%emt 0:00:00]} Bxf1 {[%emt 0:00:00]} 26.
Rxf1 {[%emt 0:00:00]} Nc6 {[%emt 0:00:00]} 27. Rxh5 {[%emt 0:00:00]} Nd4 {
[%emt 0:00:00]} 28. fxe5 {[%emt 0:00:00]} fxe5 {[%emt 0:00:00]} 29. Rf2 {
[%emt 0:00:00]} Ke6 {[%emt 0:00:00]} 30. Kb2 {[%emt 0:00:00]} Rc8 {[%emt 0:00:
00]} 31. Rh6+ {[%emt 0:00:00]} Kd5 {[%emt 0:00:00]} 32. Rg2 {[%emt 0:00:00]}
Ke4 {[%emt 0:00:00]} 33. Rf6 {[%emt 0:00:00]} Ke3 {[%emt 0:00:00]} 34. h4 {
[%emt 0:00:00]} e4 {[%emt 0:00:00]} 35. h5 {[%emt 0:00:00]} Nf3 {[%emt 0:00:00]
} 36. h6 {[%emt 0:00:00]} Ne1 {[%emt 0:00:00]} 37. Rh2 {[%emt 0:00:00]} Nf3 {
[%emt 0:00:00]} 38. Rh3 {[%emt 0:00:00]} Kf2 {[%emt 0:00:00]} 39. h7 {[%emt 0:
00:00]} Rh8 {[%emt 0:00:00]} 40. Rg6 {[%emt 0:00:00]} e3 {[%emt 0:00:00]} 41.
Rf6 {[%emt 0:00:00]} Rxh7 {[%emt 0:00:00]} 42. Rfxf3+ {[%emt 0:00:00]} Kg2 {
[%emt 0:00:00]} 43. Rhg3+ {[%emt 0:00:00]} 1-0